bitfinex/quotes_ETHUSD_20250603
["timestamp","ask_amount","ask_price","bid_price","bid_amount"]
[1748916709498,19.03070537,2638.3,2638.2,0.25132469]
[1748916709671,14.61145776,2638.3,2638.2,0.25132469]
[1748916709872,19.03070388,2638.3,2638.2,0.25132469]
[1748916710223,18.67545776,2638.3,2638.2,0.25132469]
[1748916710419,19.03070269,2638.3,2638.2,0.25132469]
[1748916710721,18.67545776,2638.3,2638.2,0.25132469]
[1748916711630,3.79175672,2637.3,2637.2,2.0452506]
[1748916711831,3.79175672,2637.3,2637.2,3.1642506]
[1748916713237,3.79175672,2637.3,2637.2,4.5664389]
[1748916714426,3.79166105,2637.4,2637.2,4.5664389]
[1748916714634,3.79175672,2637.3,2637.2,4.5664389]
[1748916714795,3.79175672,2637.3,2637.2,5.08664265]
[1748916715134,3.79175672,2637.3,2637.2,4.5664389]
[1748916718338,3.7919005,2637.2,2637.1,0.02]
[1748916718635,3.7919005,2637.2,2637.1,4.5864389]
[1748916719629,3.79180532,2637.3,2637.1,4.5864389]
[1748916719829,3.79119071,2637.7,2637.1,4.5864389]
[1748916720030,3.79156544,2637.5,2637.4,3.4474389]
[1748916720538,3.79173586,2637.4,2637.2,3.92518667]
[1748916720691,3.79173586,2637.4,2637.2,3.90608279]
[1748916720895,7.85235433,2637.6,2637.2,3.90608279]
[1748916721130,0.35522961,2638.0,2637.4,3.4474389]
[1748916721305,3.79097811,2637.9,2637.8,3.4474389]
[1748916721513,3.79106493,2637.8,2637.5,0.01909641]
[1748916721712,3.79106493,2637.8,2637.7,3.4474389]
[1748916723307,3.79090385,2637.9,2637.3,0.50450828]
[1748916723517,0.04738716,2637.9,2637.4,4.5664389]
[1748916723735,3.79103798,2637.8,2637.2,8.2174389]
[1748916723960,3.79161295,2637.4,2637.3,1.119]
[1748916724163,3.79175672,2637.3,2637.2,3.4474389]
[1748916724465,3.79175672,2637.3,2637.1,0.02]
[1748916724466,3.7919005,2637.2,2637.1,3.4674389]
[1748916724759,3.7919005,2637.2,2637.1,4.5864389]
[1748916726759,7.8518766,2637.3,2637.1,3.4674389]
[1748916726932,7.8518766,2637.3,2637.1,4.5864389]
[1748916727130,3.7919005,2637.2,2637.1,4.5864389]
[1748916727463,3.7919005,2637.2,2637.1,3.4674389]
[1748916727633,3.7919005,2637.2,2637.1,4.5864389]
[1748916728065,0.35522961,2638.0,2637.1,4.5864389]
[1748916728268,3.79132544,2637.6,2637.5,3.4474389]
[1748916728561,3.79146919,2637.5,2637.3,3.4474389]
[1748916728737,3.79161295,2637.4,2637.3,3.4474389]
[1748916728943,4.059,2637.4,2637.3,3.4474389]
[1748916729140,3.7909689,2637.9,2637.3,7.69581551]
[1748916729374,3.7909689,2637.9,2637.8,3.4474389]
[1748916729891,0.35522961,2638.0,2637.8,3.4474389]
[1748916730869,3.78962891,2638.8,2638.1,3.79047797]
[1748916731169,3.78962891,2638.8,2638.0,3.79064339]
[1748916731170,4.12637051,2638.9,2638.5,3.4474389]
[1748916731369,3.78964112,2638.8,2638.7,3.4474389]
[1748916731671,0.43263705,2638.9,2638.7,3.4474389]
[1748916731877,0.02,2638.9,2638.7,3.4474389]
[1748916732963,0.02,2638.9,2638.8,1.119]
[1748916733634,3.80950682,2638.9,2638.8,1.119]
[1748916734039,0.02,2638.9,2638.8,1.119]
[1748916737580,3.80945772,2638.9,2638.8,1.119]
[1748916738287,3.78963643,2638.8,2638.5,6.88820358]
[1748916738435,3.78963643,2638.8,2638.6,1.115]
[1748916738641,4.10336939,2638.7,2637.8,6.88820358]
[1748916738864,4.10336939,2638.7,2637.7,3.79108915]
[1748916738865,3.79077003,2638.0,2637.7,1.115]
[1748916739183,3.79103798,2637.8,2637.7,1.115]
[1748916740657,3.79103798,2637.8,2637.2,6.88820358]
[1748916740852,3.79103798,2637.8,2637.3,1.80382036]
[1748916741057,3.79103798,2637.8,2637.4,1.115]
[1748916741449,3.79091847,2637.9,2637.4,1.115]
[1748916741646,3.79112114,2637.8,2637.4,1.115]
[1748916742286,3.79119825,2637.7,2637.4,1.115]
[1748916742683,3.79109286,2637.8,2637.4,1.115]
[1748916744383,7.84609286,2637.8,2637.4,1.115]
[1748916744772,7.84609286,2637.8,2637.5,1.115]
[1748916744977,3.79093394,2637.9,2637.5,8.00320358]
[1748916745177,4.055,2637.8,2637.5,8.00320358]
[1748916745487,7.84605426,2637.8,2637.5,8.00320358]
[1748916746984,3.79119622,2637.7,2637.5,8.00320358]
[1748916747164,7.8461003,2637.8,2637.5,8.00320358]
[1748916747688,3.79119585,2637.7,2637.5,8.00320358]
[1748916747985,7.84610464,2637.8,2637.5,8.00320358]
[1748916748186,7.84610464,2637.8,2637.6,1.115]
[1748916748693,3.79098425,2637.9,2637.6,1.115]
[1748916749000,4.054,2637.8,2637.6,1.115]
[1748916749780,3.79060791,2638.1,2637.6,2.29638135]
[1748916749980,3.79046968,2638.2,2637.6,2.29638135]
[1748916749981,4.054,2638.0,2637.6,2.29638135]
[1748916750602,3.79103798,2637.8,2637.7,1.115]
[1748916751996,7.84475886,2638.0,2637.7,1.115]
[1748916752197,3.79103258,2637.9,2637.7,1.115]
[1748916752397,3.79103798,2637.8,2637.7,1.115]
[1748916752906,3.7909223,2637.9,2637.7,1.115]
[1748916753093,3.79103798,2637.8,2637.7,1.115]
[1748916753292,3.79103798,2637.8,2637.7,4.56167968]
[1748916753965,3.79135449,2637.6,2637.5,3.44667968]
[1748916754165,0.9168,2637.4,2636.4,1.19999711]
[1748916754379,3.79197722,2637.2,2636.9,3.44667968]
[1748916754590,3.79204429,2637.1,2637.0,1.115]
[1748916755194,4.053,2637.3,2637.0,1.115]
[1748916755504,4.053,2637.7,2637.2,3.44667968]
[1748916755701,4.053,2637.8,2637.6,3.44667968]
[1748916755902,3.79104478,2637.8,2637.6,3.44667968]
[1748916756206,7.84304478,2637.8,2637.6,3.44667968]
[1748916756399,3.79118171,2637.7,2637.6,3.44667968]
[1748916758107,7.84307731,2637.8,2637.6,3.44667968]
[1748916758272,3.79118171,2637.7,2637.6,3.44667968]
[1748916758706,3.79139622,2637.6,2637.0,1.57116797]
[1748916759007,3.79139622,2637.6,2637.5,3.44667968]
[1748916759506,3.79124137,2637.7,2637.5,3.44667968]
[1748916759807,3.79132544,2637.6,2637.5,3.44667968]
[1748916759983,3.7912467,2637.7,2637.5,3.44667968]
[1748916760185,3.79132544,2637.6,2637.5,3.44667968]
[1748916761821,3.791033,2637.9,2637.5,3.79134765]
[1748916761993,3.79114775,2637.8,2637.7,3.44667968]
[1748916762196,3.79114775,2637.8,2637.5,3.44667968]
[1748916762425,3.79132544,2637.6,2637.5,3.44667968]
[1748916763017,3.7912242,2637.7,2637.5,3.44667968]
[1748916763314,3.79092769,2637.9,2637.5,3.44667968]
[1748916763515,3.79103798,2637.8,2637.7,3.44667968]
[1748916764928,3.79092115,2637.9,2637.7,3.44667968]
[1748916765093,7.84192115,2637.9,2637.8,1.115]
[1748916766027,3.79092115,2637.9,2637.8,1.115]
[1748916766230,7.84192115,2637.9,2637.8,1.115]
[1748916767522,3.79111498,2637.8,2637.5,3.44667968]
[1748916767823,3.79111498,2637.8,2637.7,3.44667968]
[1748916768636,3.79118171,2637.7,2637.6,4.55767968]
[1748916769534,0.04738849,2637.8,2637.3,4.04417696]
[1748916769712,3.79118171,2637.7,2637.1,2.5799854]
[1748916769898,3.79154682,2637.5,2637.4,1.111]
[1748916770098,3.79154682,2637.5,2637.4,4.55767968]
[1748916771430,3.79154682,2637.5,2637.4,3.44667968]
[1748916771630,3.79154682,2637.5,2637.4,4.55767968]
[1748916772534,3.79146919,2637.5,2637.4,4.55767968]
[1748916773566,3.79290726,2636.5,2636.4,1.19999711]
[1748916773836,4.049,2636.8,2636.3,3.44667968]
[1748916774038,3.79271658,2636.7,2636.3,0.01913221]
[1748916774614,3.79271658,2636.7,2636.2,1.111]
[1748916774947,3.79271658,2636.7,2636.3,0.46157733]
[1748916775147,4.049,2637.0,2636.6,3.44667968]
[1748916775307,4.049,2637.1,2636.9,3.44667968]
[1748916775631,7.84105926,2637.1,2637.0,1.111]
[1748916776935,3.79218809,2637.0,2636.9,3.44667968]
[1748916777106,3.79218809,2637.0,2636.9,4.55767968]
[1748916777936,3.79218809,2637.0,2636.9,3.44667968]
[1748916778116,3.79218809,2637.0,2636.9,4.55767968]
[1748916779335,3.79218809,2637.0,2636.9,1.111]
[1748916779704,3.7924213,2636.9,2636.7,3.44667968]
[1748916779900,3.79218809,2637.0,2636.4,3.44667968]
[1748916779901,0.93010255,2636.8,2636.4,3.44667968]
[1748916780237,0.93010255,2636.8,2636.6,3.44667968]
[1748916780437,3.79236488,2636.9,2636.6,3.44667968]
[1748916780644,3.79236488,2636.9,2636.8,3.44667968]
[1748916781665,3.79224475,2637.0,2636.8,3.44667968]
[1748916781810,0.8732,2637.3,2636.8,3.44667968]
[1748916782011,3.79204429,2637.1,2637.0,3.44667968]
[1748916782357,3.7919011,2637.2,2637.0,3.44667968]
[1748916782708,0.8732,2637.5,2637.0,3.44667968]
[1748916782906,0.8711,2637.7,2637.2,3.44667968]
[1748916783113,11.72004913,2638.5,2637.4,3.44667968]
[1748916783114,8.71003296,2637.9,2637.4,3.44667968]
[1748916783312,0.04739341,2637.8,2637.4,3.44667968]
[1748916783542,4.09539341,2637.8,2637.4,3.44667968]
[1748916783908,3.79145513,2637.6,2637.4,3.44667968]
[1748916784415,3.79124359,2637.7,2637.4,3.44667968]
[1748916784835,7.88545997,2637.8,2637.4,3.44667968]
[1748916785406,3.79119899,2637.7,2637.4,3.44667968]
[1748916785606,7.88544874,2637.8,2637.4,3.44667968]
[1748916785845,3.79123785,2637.7,2637.4,3.44667968]
[1748916786418,7.8854586,2637.8,2637.4,3.44667968]
[1748916787153,3.79118375,2637.7,2637.4,3.44667968]
[1748916788131,7.88549014,2637.8,2637.4,3.44667968]
[1748916788328,3.83851552,2637.8,2637.4,3.44667968]
[1748916788522,3.79121132,2637.7,2637.4,3.44667968]
[1748916789643,3.79121132,2637.7,2637.3,1.111]
[1748916791416,1.25003594,2637.7,2636.6,0.45576797]
[1748916791646,3.79194981,2637.2,2636.7,4.55767968]
[1748916791831,3.79179736,2637.3,2636.9,3.44667968]
[1748916792431,7.88507746,2637.4,2637.0,0.35294826]
[1748916792637,3.79176228,2637.3,2637.0,0.35294826]
[1748916792926,4.046,2637.4,2637.1,3.44667968]
[1748916793531,3.83877954,2637.6,2637.1,3.44667968]
[1748916793872,4.045,2637.6,2637.2,0.01910474]
[1748916794230,7.83635202,2637.6,2637.2,0.01910474]
[1748916794425,7.83635202,2637.6,2637.1,3.44667968]
[1748916794426,3.79149465,2637.5,2637.1,3.44667968]
[1748916796661,3.79149465,2637.5,2637.3,3.44667968]
[1748916797168,3.79137263,2637.6,2637.3,3.44667968]
[1748916797490,3.79154838,2637.5,2637.3,3.44667968]
[1748916798266,3.79139394,2637.6,2637.3,3.44667968]
[1748916798469,4.045,2637.7,2637.3,3.44667968]
[1748916798673,3.79133713,2637.6,2637.3,3.44667968]
[1748916799557,7.8835842,2637.7,2637.3,3.44667968]
[1748916799756,3.79141552,2637.6,2637.3,3.44667968]
[1748916799957,7.83521503,2637.7,2637.5,3.44667968]
[1748916800151,3.79107582,2637.8,2637.6,1.107]
[1748916800152,3.79109317,2637.8,2637.6,1.107]
[1748916800358,7.83509317,2637.8,2637.6,1.107]
[1748916800908,3.79118171,2637.7,2637.6,1.107]
[1748916801201,3.79108428,2637.8,2637.6,1.107]
[1748916801549,3.79118171,2637.7,2637.6,1.107]
[1748916803391,3.79161295,2637.4,2637.2,1.107]
[1748916803691,4.61003675,2637.5,2637.2,1.107]
[1748916803990,8.65303675,2637.5,2637.2,1.107]
[1748916804700,7.83453675,2637.5,2637.2,1.107]
[1748916804908,7.88193285,2637.5,2637.3,3.44667968]
[1748916805057,3.79161295,2637.4,2637.3,3.44667968]
[1748916805252,7.88189537,2637.5,2637.3,3.44667968]
[1748916805458,7.88189537,2637.5,2637.4,1.107]
[1748916806610,9.25605708,2637.5,2637.4,1.107]
[1748916806897,9.20866098,2637.5,2637.4,1.107]
[1748916808687,5.16566098,2637.5,2637.4,1.107]
[1748916808910,9.25505665,2637.5,2637.4,1.107]
[1748916809221,9.20766098,2637.5,2637.4,1.107]
[1748916810724,9.20766098,2637.5,2637.1,3.44667968]
[1748916810924,3.79204429,2637.1,2637.0,0.35294826]
[1748916811130,3.83907343,2637.4,2637.2,1.107]
[1748916811281,3.83907343,2637.4,2637.2,4.55367968]
[1748916811282,3.79167733,2637.4,2637.2,4.55367968]
[1748916812410,3.79168748,2637.4,2637.2,4.55367968]
[1748916812714,3.79170628,2637.4,2637.2,4.55367968]
[1748916813827,7.83252386,2637.5,2637.2,4.55367968]
[1748916815423,4.041,2637.5,2637.2,4.55367968]
[1748916815728,4.67303008,2637.9,2637.4,3.44667968]
[1748916815927,4.041,2637.8,2637.6,3.44667968]
[1748916816223,7.83203798,2637.8,2637.6,3.44667968]
[1748916816539,3.79118171,2637.7,2637.6,3.44667968]
[1748916817550,3.79118171,2637.7,2637.6,4.55367968]
[1748916817902,3.79118171,2637.7,2637.6,4.90640306]
[1748916818230,3.79118171,2637.7,2637.6,4.55367968]
[1748916820329,3.79118171,2637.7,2637.6,4.90636567]
[1748916821049,3.79118171,2637.7,2637.6,5.25907483]
[1748916821230,4.67303873,2637.9,2637.6,5.25907483]
[1748916821231,4.67303873,2637.9,2637.6,4.90636567]
[1748916821441,4.6730215,2637.9,2637.6,4.90636567]
[1748916821647,7.83015402,2637.8,2637.6,4.90636567]
[1748916821827,7.83015402,2637.8,2637.6,4.85636567]
[1748916822903,3.79100858,2637.9,2637.6,4.85636567]
[1748916823102,3.79100858,2637.9,2637.8,3.44667968]
[1748916824943,3.79100858,2637.9,2637.8,3.79936298]
[1748916825546,3.79100858,2637.9,2637.8,4.15204238]
[1748916825757,0.8379,2638.1,2637.8,4.15204238]
[1748916825971,4.62113346,2638.3,2638.0,3.44667968]
[1748916826131,8.65913346,2638.3,2638.0,3.44667968]
[1748916826468,3.79031952,2638.3,2638.0,3.44667968]
[1748916826667,7.82831952,2638.3,2638.1,0.35253747]
[1748916826825,3.79031952,2638.3,2638.0,3.44667968]
[1748916827030,3.79031952,2638.3,2638.2,3.44667968]
[1748916828256,3.79031952,2638.3,2638.2,3.79920175]
[1748916828459,3.79031952,2638.3,2638.2,3.44667968]
[1748916828774,3.79055233,2638.2,2638.0,3.44667968]
[1748916829358,3.79055233,2638.2,2638.1,0.35247197]
[1748916829672,3.79055233,2638.2,2638.0,3.44667968]
[1748916830970,3.79055233,2638.2,2638.1,0.35248013]
[1748916831273,3.79055233,2638.2,2638.0,3.44667968]
[1748916832175,3.79055233,2638.2,2638.1,0.35246793]
[1748916832339,4.99982117,2638.2,2638.1,0.70499482]
[1748916832538,5.83382117,2638.2,2638.1,0.35246793]
[1748916833144,5.83382117,2638.2,2638.1,0.70500021]
[1748916833351,8.66055233,2638.2,2638.1,0.70500021]
[1748916833834,9.22855233,2638.2,2638.1,1.05730122]
[1748916834052,9.22855233,2638.2,2638.1,0.70500021]
[1748916834253,10.53044059,2638.2,2638.1,0.70500021]
[1748916835472,10.53044059,2638.2,2638.1,1.05740657]
[1748916836053,9.98044059,2638.2,2638.1,1.05740657]
[1748916837170,9.97944059,2638.2,2638.1,1.05740657]
[1748916838169,5.94444059,2638.2,2638.1,1.05740657]
[1748916838378,5.99182912,2638.2,2638.1,1.05740657]
[1748916838562,10.02682912,2638.2,2638.1,1.05740657]
[1748916838762,9.97944059,2638.2,2638.1,1.05740657]
[1748916839644,5.94444059,2638.2,2638.1,1.05740657]
[1748916839849,10.02682769,2638.2,2638.1,1.05740657]
[1748916840049,9.97944059,2638.2,2638.1,1.05740657]
[1748916841105,5.94444059,2638.2,2638.1,1.05740657]
[1748916841261,10.02682627,2638.2,2638.1,1.05740657]
[1748916841592,9.97944059,2638.2,2638.1,1.05740657]
[1748916841950,5.94444059,2638.2,2638.1,1.05740657]
[1748916842297,10.02682583,2638.2,2638.1,1.05740657]
[1748916842444,9.97944059,2638.2,2638.1,1.05740657]
[1748916842652,9.12744059,2638.2,2638.1,1.05740657]
[1748916842850,9.12644059,2638.2,2638.1,1.05740657]
[1748916845404,7.82455233,2638.2,2638.1,1.05740657]
[1748916845976,3.79035187,2638.3,2638.1,1.05740657]
[1748916846174,3.79046319,2638.2,2638.1,1.05740657]
[1748916848926,0.8349,2639.1,2638.1,9.05740657]
[1748916849096,3.78942763,2639.0,2638.8,3.44667968]
[1748916849304,3.78941334,2639.0,2638.8,4.54967968]
[1748916850222,3.7893771,2639.0,2638.8,4.54967968]
[1748916850437,3.80945772,2638.9,2638.8,4.54967968]
[1748916853198,0.02,2638.9,2638.7,3.44667968]
[1748916853546,0.02,2638.9,2638.8,1.51798248]
[1748916853703,0.02,2638.9,2638.8,5.30758381]
[1748916853908,0.02,2638.9,2638.8,1.51798248]
[1748916854091,0.02,2638.9,2638.8,5.30758381]
[1748916855024,0.02,2638.9,2638.8,8.75426349]
[1748916855324,0.02,2638.9,2638.8,16.73521707]
[1748916856391,0.02,2638.9,2638.8,12.18553739]
[1748916856590,0.02,2638.9,2638.8,0.39593606]
[1748916856934,0.02,2638.9,2638.8,1.49493606]
[1748916857505,0.02,2638.9,2638.8,0.39593606]
[1748916857707,0.02,2638.9,2638.8,1.49493606]
[1748916857912,0.02,2638.9,2638.8,5.28453739]
[1748916858133,0.02,2638.9,2638.8,1.49493606]
[1748916858331,0.02,2638.9,2638.8,0.39593606]
[1748916858634,0.02,2638.9,2638.8,3.84261574]
[1748916858847,0.02,2638.9,2638.8,4.94161574]
[1748916859201,0.02,2638.9,2638.8,3.84261574]
[1748916859414,0.02,2638.9,2638.8,4.54567968]
[1748916860139,0.02,2638.9,2638.8,8.33528101]
[1748916860346,0.02,2638.9,2638.8,10.68296069]
[1748916860639,0.02,2638.9,2638.8,8.33528101]
[1748916861306,0.02,2638.9,2638.8,7.23628101]
[1748916861535,0.02,2638.9,2638.8,10.68653273]
[1748916862040,0.02,2638.9,2638.8,5.7979314]
[1748916862417,0.02,2638.9,2638.8,6.8969314]
[1748916862602,0.02,2638.9,2638.8,2.35125172]
[1748916862804,0.02,2638.9,2638.8,1.099]
[1748916864249,3.80945772,2638.9,2638.8,1.099]
[1748916864444,0.02,2638.9,2638.8,1.099]
[1748916864611,0.02,2638.9,2638.7,3.44667968]
[1748916864810,0.02,2638.9,2638.8,1.099]
[1748916868535,3.80945772,2638.9,2638.8,1.099]
[1748916868922,0.02,2638.9,2638.8,1.099]
[1748916870567,0.02,2638.9,2638.8,1.11805122]
[1748916870873,0.02,2638.9,2638.8,2.75275578]
[1748916871681,0.02,2638.9,2638.8,6.56140011]
[1748916872559,0.02,2638.9,2638.8,2.77179878]
[1748916872786,0.02,2638.9,2638.8,2.75275578]
[1748916872970,0.02,2638.9,2638.8,2.7717984]
[1748916873668,0.02,2638.9,2638.8,6.56139973]
[1748916874691,0.02,2638.9,2638.8,18.00807941]
[1748916874977,0.02,2638.9,2638.8,14.19943546]
[1748916875182,0.02,2638.9,2638.8,10.75275578]
[1748916875711,3.80952724,2638.9,2638.7,4.54567968]
[1748916875990,0.02,2638.9,2638.7,4.54567968]
[1748916876648,0.02,2638.9,2638.7,8.33540761]
[1748916877160,0.02,2638.9,2638.7,4.54567968]
[1748916877361,0.02,2638.9,2638.7,4.5647292]
[1748916877557,0.02,2638.9,2638.7,4.56472929]
[1748916877770,0.02,2638.9,2638.7,4.54567968]
[1748916880308,0.02,2638.9,2638.7,4.56472931]
[1748916881611,0.02,2638.9,2638.5,3.78999577]
[1748916881612,3.78996638,2638.6,2638.5,3.44667968]
[1748916881763,4.024,2638.7,2638.5,3.44667968]
[1748916881962,4.024,2638.7,2638.6,3.44667968]
[1748916882198,0.02,2638.9,2638.6,3.44667968]
[1748916882400,0.02,2638.9,2638.8,3.44667968]
[1748916883706,0.02,2638.9,2638.8,19.40852111]
[1748916883923,0.02,2638.9,2638.8,15.96184143]
[1748916884910,0.02,2638.9,2638.8,11.44667968]
[1748916885564,0.02,2638.9,2638.8,3.44667968]
[1748916890420,3.80945772,2638.9,2638.8,4.54167968]
[1748916890708,0.02,2638.9,2638.8,3.44667968]
[1748916891008,0.02,2638.9,2638.8,16.33128101]
[1748916891183,0.02,2638.9,2638.8,17.2483825]
[1748916891381,0.02,2638.9,2638.8,13.45878117]
[1748916891595,0.02,2638.9,2638.3,1.095]
[1748916891814,0.02,2638.9,2638.7,3.44667968]
[1748916892697,0.02,2638.9,2638.7,4.54167968]
[1748916898315,0.02,2638.9,2638.7,8.33131187]
[1748916898518,0.02,2638.9,2638.8,3.80865233]
[1748916898688,0.02,2638.9,2638.8,13.02265948]
[1748916898881,0.02,2638.9,2638.8,13.00360848]
[1748916899785,0.02,2638.9,2638.8,16.45028816]
[1748916900688,3.8080434,2639.9,2638.9,8.0]
[1748916900891,4.67773383,2639.7,2639.2,8.0]
[1748916901086,0.8894,2639.7,2639.3,0.01902807]
[1748916901319,4.9094,2639.7,2639.3,3.78887715]
[1748916901526,4.9094,2639.7,2639.2,3.78900653]
[1748916901692,4.9094,2639.7,2638.8,9.21400715]
[1748916901887,4.9094,2639.7,2639.2,3.78897078]
[1748916902235,4.9094,2639.7,2639.6,3.44667968]
[1748916902385,4.02,2639.7,2639.6,3.44667968]
[1748916902588,3.80808758,2639.9,2639.6,3.44667968]
[1748916902589,4.74654136,2639.9,2639.6,3.44667968]
[1748916903126,7.80816862,2639.8,2639.6,3.44667968]
[1748916904135,3.78830927,2639.7,2639.6,3.44667968]
[1748916905010,7.80821606,2639.8,2639.6,3.44667968]
[1748916905233,0.9111,2639.9,2639.6,3.44667968]
[1748916905394,0.02,2639.9,2639.8,3.44667968]
[1748916906037,0.02,2639.9,2639.8,7.25386124]
[1748916906239,0.02,2639.9,2639.8,7.96025316]
[1748916906426,0.02,2639.9,2639.8,15.96025316]
[1748916909556,0.02,2639.9,2639.8,12.17208739]
[1748916909699,0.02,2639.9,2639.8,15.96025316]
[1748916910044,0.02,2639.9,2639.8,19.40693284]
[1748916910246,0.02,2639.9,2639.8,15.96025316]
[1748916911239,0.02,2639.9,2639.8,19.40693284]
[1748916911444,3.78716152,2640.5,2640.4,3.44667968]
[1748916914355,4.61642718,2640.6,2640.3,1.095]
[1748916914356,3.78730495,2640.4,2640.3,1.095]
[1748916914557,4.017,2640.7,2640.0,3.44667968]
[1748916914558,3.78787765,2640.1,2640.0,3.44667968]
[1748916914756,4.6568819,2640.2,2640.0,3.44667968]
[1748916915057,4.016,2640.3,2640.0,3.90084765]
[1748916915222,4.016,2640.3,2640.2,3.44667968]
[1748916916019,4.63837633,2640.0,2639.9,4.54167968]
[1748916916426,0.8504,2640.0,2639.9,4.54167968]
[1748916916942,7.80349084,2640.3,2639.9,4.54167968]
[1748916916943,0.9046,2640.2,2639.9,4.54167968]
[1748916917150,0.9046,2640.2,2640.1,3.44667968]
[1748916917561,4.016,2640.3,2640.1,3.44667968]
[1748916918057,0.8736,2640.2,2639.6,3.78837809]
[1748916918356,0.8736,2640.2,2640.1,3.44667968]
[1748916919427,4.66119184,2640.2,2640.1,3.44667968]
[1748916919650,4.016,2640.3,2640.1,3.44667968]
[1748916920250,3.78759184,2640.2,2640.1,3.44667968]
[1748916921045,7.80350218,2640.3,2640.1,3.44667968]
[1748916922672,3.78759184,2640.2,2640.1,3.44667968]
[1748916923033,7.80351253,2640.3,2640.1,3.44667968]
[1748916923366,3.78719173,2640.5,2640.1,3.44667968]
[1748916923666,3.78727243,2640.5,2640.3,3.44667968]
[1748916924031,3.78730495,2640.4,2640.3,3.44667968]
[1748916929740,8.61956545,2640.6,2640.3,3.44667968]
[1748916929946,8.61951987,2640.6,2640.5,3.44667968]
[1748916930169,3.78733562,2640.4,2640.1,0.01899667]
[1748916930471,3.78730495,2640.4,2640.3,3.44667968]
[1748916934572,4.63302668,2640.5,2640.3,3.44667968]
[1748916935136,4.012,2640.4,2640.3,3.44667968]
[1748916937071,4.012,2640.4,2639.6,3.78841027]
[1748916937279,4.012,2640.4,2639.7,5.37791885]
[1748916937280,3.78751362,2640.3,2639.7,5.37791885]
[1748916937462,3.78751362,2640.3,2640.2,3.44667968]
[1748916937653,7.79935741,2640.4,2640.2,3.44667968]
[1748916937848,4.012,2640.4,2640.2,3.44667968]
[1748916938281,7.79933257,2640.4,2640.2,3.44667968]
[1748916939380,4.60936172,2640.3,2639.4,4.98711332]
[1748916939540,3.78782556,2640.1,2639.9,3.44667968]
[1748916939740,4.011,2640.0,2639.9,3.44667968]
[1748916942178,7.79887878,2640.0,2639.9,3.44667968]
[1748916942373,4.011,2640.0,2639.9,3.44667968]
[1748916942937,7.79887878,2640.0,2639.9,3.44667968]
[1748916943141,3.788269,2639.8,2639.7,3.44667968]
[1748916943681,3.83562201,2639.8,2639.7,3.44667968]
[1748916944546,3.78869622,2639.5,2639.4,3.44667968]
[1748916948383,0.883,2639.9,2639.4,3.44667968]
[1748916948553,7.845562,2639.8,2639.7,3.44667968]
[1748916948754,8.7184182,2639.8,2639.7,3.44667968]
[1748916948985,8.67105931,2639.8,2639.7,3.44667968]
[1748916951520,3.78910344,2639.2,2639.0,6.19324188]
[1748916951813,3.78910344,2639.2,2639.1,3.44667968]
[1748916952506,7.79792349,2639.3,2639.1,3.44667968]
[1748916953575,3.78902697,2639.2,2639.1,3.44667968]
[1748916954414,4.8608,2639.3,2638.3,3.79030961]
[1748916954640,3.78939292,2639.0,2638.5,1.088]
[1748916954780,7.79839292,2639.0,2638.5,9.088]
[1748916955635,3.78949755,2638.9,2638.5,9.088]
[1748916955836,3.78949755,2638.9,2638.8,3.44667968]
[1748916957040,3.79000037,2638.6,2638.1,0.02]
[1748916957241,3.79017586,2638.4,2638.1,0.02]
[1748916957427,4.65967586,2638.4,2638.3,3.44667968]
[1748916957628,4.70705383,2638.4,2638.3,3.44667968]
[1748916960569,8.71505383,2638.4,2638.3,3.44667968]
[1748916960719,8.66767586,2638.4,2638.3,3.44667968]
[1748916962624,8.66767586,2638.4,2638.1,0.02]
[1748916962827,3.79046319,2638.2,2638.1,0.02]
[1748916964063,3.8377519,2638.3,2638.1,3.46667968]
[1748916964362,3.79046319,2638.2,2638.1,3.46667968]
[1748916965848,3.79046319,2638.2,2638.1,0.02]
[1748916965849,4.35198956,2638.2,2638.1,0.02]
[1748916966005,4.39937135,2638.2,2638.1,0.02]
[1748916968920,4.007,2638.2,2638.1,0.02]
[1748916969454,7.79746319,2638.2,2638.1,0.02]
[1748916969757,0.8695,2638.4,2638.1,0.02]
[1748916970076,0.879,2638.8,2638.3,3.44667968]
[1748916970216,3.78960133,2638.8,2638.7,3.44667968]
[1748916970417,7.79660133,2638.8,2638.7,3.44667968]
[1748916971863,8.65707524,2638.8,2638.7,3.44667968]
[1748916972166,8.60970133,2638.8,2638.7,3.44667968]
[1748916972362,3.78988857,2638.6,2638.5,3.44667968]
[1748916972566,3.83726427,2638.6,2638.5,3.44667968]
[1748916974131,3.78988857,2638.6,2638.5,3.80457299]
[1748916974431,3.78988857,2638.6,2638.5,3.44667968]
[1748916974630,3.78988857,2638.6,2638.5,3.8045997]
[1748916975981,3.78988857,2638.6,2638.5,4.15651355]
[1748916976625,3.78988857,2638.6,2638.5,4.50837316]
[1748916976830,4.33840652,2639.7,2638.5,4.15651355]
[1748916976831,0.888,2638.9,2638.5,4.15651355]
[1748916977165,4.67748449,2638.9,2638.8,3.44667968]
[1748916977363,4.67748449,2638.9,2638.5,0.35191385]
[1748916977364,3.78972599,2638.8,2638.7,3.44667968]
[1748916977563,7.79572599,2638.8,2638.7,3.80474734]
[1748916977766,4.006,2638.8,2638.7,3.80474734]
[1748916978182,3.5434234,2638.8,2638.7,4.15659026]
[1748916978390,4.006,2638.8,2638.7,3.80474734]
[1748916978595,7.79560133,2638.8,2638.7,4.15658635]
[1748916978774,0.04737167,2638.9,2638.7,4.15658635]
[1748916978974,3.78767719,2640.2,2638.8,3.80474734]
[1748916978975,0.8717,2639.4,2638.8,3.80474734]
[1748916979300,3.78873986,2639.4,2639.3,3.44667968]
[1748916979485,7.79473986,2639.4,2639.3,3.80474734]
[1748916979687,0.8717,2639.6,2639.3,3.80474734]
[1748916979892,4.6602453,2639.6,2639.5,3.44667968]
[1748916980199,3.78859632,2639.5,2639.4,0.35156415]
[1748916980376,4.70765922,2639.5,2639.4,0.35156415]
[1748916982763,4.70765922,2639.5,2639.4,0.70336894]
[1748916983097,4.70765922,2639.5,2639.4,0.35156415]
[1748916983298,6.42109626,2639.5,2639.4,0.35156415]
[1748916984169,6.97109626,2639.5,2639.4,0.35156415]
[1748916984359,14.97110615,2639.5,2639.4,0.35156415]
[1748916984562,14.92373336,2639.5,2639.4,0.35156415]
[1748916985861,3.78960133,2638.8,2638.7,0.35183901]
[1748916986067,8.67720133,2638.8,2638.7,0.71082389]
[1748916987608,8.67720133,2638.8,2638.7,0.35183901]